fUST/lending_fUST_20250316
["ID","MTS","AMOUNT","RATE_DAILY","PERIOD"]
[356242910,1742131839895,-500.0,8.219e-05,2]
[356242911,1742131839905,-500.0,8.219e-05,2]
[356242912,1742131839915,-500.0,8.219e-05,2]
[356242913,1742131839925,-500.0,8.219e-05,2]
[356242914,1742131839935,-162566.84,8.219e-05,2]
[356242915,1742131839944,-797.4,8.219e-05,2]
[356242916,1742131839954,-500.0,8.219e-05,2]
[356242917,1742131839964,-151.0,8.219e-05,2]
[356242918,1742131839973,-151.0,8.219e-05,2]
[356242919,1742131839983,-151.0,8.219e-05,2]
[356242920,1742131839993,-151.0,8.219e-05,2]
[356242921,1742131840003,-151.0,8.219e-05,2]
[356242922,1742131840013,-175.84516,8.219e-05,2]
[356242923,1742131840023,-247.68796036,8.219e-05,2]
[356242924,1742131840032,-155.637267,8.22e-05,2]
[356242925,1742131840042,-155.637267,8.22e-05,2]
[356242926,1742131840052,-155.637267,8.22e-05,2]
[356242927,1742131840062,-158.857757,8.22e-05,2]
[356242928,1742131840077,-1121.4089651,8.22e-05,2]
[356242929,1742131840088,-1000.0,8.25e-05,2]
[356242930,1742131840097,-155.637267,8.25e-05,2]
[356242931,1742131840107,-374.022947,8.25e-05,2]
[356242932,1742131840117,-155.637267,8.25e-05,2]
[356242934,1742131840126,-559.4225717,8.25e-05,2]
[356242936,1742131840136,-155.637267,8.25e-05,2]
[356242937,1742131840147,-187.0114735,8.25e-05,2]
[356242938,1742131840156,-622.2,8.269e-05,2]
[356242939,1742131840167,-645.2214,8.324e-05,2]
[356242940,1742131840176,-669.0945918,8.379e-05,2]
[356242941,1742131840187,-96542.2171518,8.388e-05,7]
[356242942,1742131840196,-693.8510917,8.434e-05,2]
[356242943,1742131840206,-160.0,8.456e-05,2]
[356242944,1742131840216,-160.0,8.456e-05,2]
[356242945,1742131840226,-417.78412626,8.456e-05,2]
[356242946,1742131840237,-160.0,8.456e-05,2]
[356242947,1742131840247,-833.88055864,8.456e-05,2]
[356242948,1742131840257,-12458.93820146,8.456e-05,2]
[356242949,1742131840267,-500.0,8.473e-05,2]
[356242950,1742131840276,-500.0,8.473e-05,2]
[356242951,1742131840286,-500.0,8.473e-05,2]
[356242953,1742131840296,-500.0,8.473e-05,2]
[356242954,1742131840306,-500.0,8.473e-05,2]
[356242955,1742131840316,-500.0,8.473e-05,2]
[356242956,1742131840326,-719.52358209,8.489e-05,2]
[356242957,1742131840335,-7023.4926032,8.49e-05,2]
[356242958,1742131840345,-500.0,8.493e-05,2]
[356242959,1742131840354,-500.8060366,8.493e-05,2]
[356242960,1742131840364,-500.0,8.493e-05,2]
[356242961,1742131840374,-500.0,8.493e-05,2]
[356242962,1742131840384,-500.0,8.493e-05,2]
[356242963,1742131840394,-546.16791124,8.493e-05,2]
[356242964,1742131840403,-481.69,8.493e-05,2]
[356242966,1742131840413,-500.0,8.493e-05,2]
[356242968,1742131840422,-500.0,8.493e-05,2]
[356242970,1742131840432,-500.0,8.493e-05,2]
[356242971,1742131840441,-500.0,8.493e-05,2]
[356242972,1742131840451,-359.17,8.493e-05,2]
[356242973,1742131840460,-500.0,8.493e-05,2]
[356242974,1742131840470,-514.77545165,8.493e-05,2]
[356242975,1742131840479,-500.0,8.493e-05,2]
[356242976,1742131840489,-179.27316249,8.493e-05,2]
[356242977,1742131840498,-500.0,8.493e-05,2]
[356242978,1742131840508,-625.13979299,8.493e-05,2]
[356242979,1742131840517,-500.0,8.493e-05,2]
[356242980,1742131840527,-500.0,8.493e-05,2]
[356242981,1742131840536,-500.0,8.493e-05,2]
[356242982,1742131840545,-500.0,8.493e-05,2]
[356242983,1742131840555,-500.0,8.493e-05,2]
[356242984,1742131840564,-500.0,8.493e-05,2]
[356242985,1742131840573,-500.0,8.493e-05,2]
[356242986,1742131840583,-500.0,8.493e-05,2]
[356242987,1742131840592,-500.0,8.493e-05,2]
[356242988,1742131840601,-500.0,8.493e-05,2]
[356242989,1742131840611,-500.0,8.493e-05,2]
[356242990,1742131840620,-500.0,8.493e-05,2]
[356242991,1742131840631,-500.0,8.493e-05,2]
[356242992,1742131840640,-153.65,8.493e-05,2]
[356242993,1742131840650,-500.0,8.493e-05,2]
[356242994,1742131840661,-500.0,8.493e-05,2]
[356242995,1742131840670,-500.0,8.493e-05,2]
[356242996,1742131840680,-500.0,8.493e-05,2]
[356242997,1742131840690,-500.0,8.493e-05,2]
[356242998,1742131840700,-500.0,8.493e-05,2]
[356242999,1742131840710,-500.0,8.493e-05,2]
[356243000,1742131840720,-500.0,8.493e-05,2]
[356243001,1742131840887,-500.0,8.493e-05,2]
[356243002,1742131840897,-500.0,8.493e-05,2]
[356243003,1742131840907,-500.0,8.493e-05,2]
[356243004,1742131840916,-500.0,8.493e-05,2]
[356243005,1742131840926,-500.0,8.493e-05,2]
[356243006,1742131840935,-500.0,8.493e-05,2]
[356243007,1742131840945,-646.72,8.493e-05,2]
[356243008,1742131840955,-172.73,8.493e-05,2]
[356243009,1742131840964,-601.98395575,8.493e-05,2]
[356243010,1742131840974,-500.0,8.493e-05,2]
[356243011,1742131840984,-500.0,8.493e-05,2]
[356243012,1742131840993,-500.0,8.493e-05,2]
[356243013,1742131841003,-500.0,8.493e-05,2]
[356243014,1742131841012,-500.0,8.493e-05,2]
[356243015,1742131841022,-500.0,8.493e-05,2]
[356243016,1742131841031,-500.0,8.493e-05,2]
[356243017,1742131841041,-500.0,8.493e-05,2]
[356243018,1742131841050,-500.0,8.493e-05,2]
[356243019,1742131841061,-500.0,8.493e-05,2]
[356243020,1742131841072,-273.43319536,8.493e-05,2]
[356243021,1742131841082,-500.0,8.493e-05,2]
[356243022,1742131841091,-500.0,8.493e-05,2]
[356243023,1742131841101,-500.0,8.493e-05,2]
[356243024,1742131841111,-500.0,8.493e-05,2]
[356243025,1742131841120,-500.0,8.493e-05,2]
[356243026,1742131841129,-520.19088206,8.493e-05,2]
[356243027,1742131841140,-500.0,8.493e-05,2]
[356243028,1742131841149,-500.0,8.493e-05,2]
[356243029,1742131841158,-628.46,8.493e-05,2]
[356243030,1742131841168,-500.0,8.493e-05,2]
[356243031,1742131841177,-500.0,8.493e-05,2]
[356243032,1742131841187,-500.0,8.493e-05,2]
[356243033,1742131841196,-500.0,8.493e-05,2]
[356243034,1742131841206,-500.0,8.493e-05,2]
[356243035,1742131841215,-500.0,8.493e-05,2]
[356243036,1742131841225,-500.0,8.493e-05,2]
[356243037,1742131841235,-500.0,8.493e-05,2]
[356243038,1742131841244,-500.0,8.493e-05,2]
[356243039,1742131841253,-508.36958541,8.493e-05,2]
[356243040,1742131841263,-500.0,8.493e-05,2]
[356243041,1742131841274,-500.0,8.493e-05,2]
[356243042,1742131841284,-500.0,8.493e-05,2]
[356243043,1742131841294,-500.0,8.493e-05,2]
[356243044,1742131841303,-526.52609571,8.493e-05,2]
[356243045,1742131841314,-500.0,8.493e-05,2]
[356243046,1742131841324,-500.0,8.493e-05,2]
[356243047,1742131841333,-500.0,8.493e-05,2]
[356243048,1742131841344,-500.0,8.493e-05,2]
[356243049,1742131841355,-1000.0,8.493e-05,2]
[356243050,1742131841365,-500.66355087,8.493e-05,2]
[356243051,1742131841374,-508.92768849,8.493e-05,2]
[356243052,1742131841384,-500.0,8.493e-05,2]
[356243053,1742131841394,-500.0,8.493e-05,2]
[356243054,1742131841403,-229.09,8.493e-05,2]
[356243055,1742131841413,-234.02,8.493e-05,2]
[356243056,1742131841423,-248.0,8.493e-05,2]
[356243057,1742131841433,-500.0,8.493e-05,2]
[356243058,1742131841444,-500.0,8.493e-05,2]
[356243059,1742131841454,-500.0,8.493e-05,2]
[356243060,1742131841463,-500.0,8.493e-05,2]
[356243061,1742131841473,-500.0,8.493e-05,2]
[356243062,1742131841482,-500.0,8.493e-05,2]
[356243063,1742131841492,-500.0,8.493e-05,2]
[356243064,1742131841502,-500.0,8.493e-05,2]
[356243065,1742131841511,-570.42849905,8.493e-05,2]
[356243066,1742131841521,-500.0,8.493e-05,2]
[356243067,1742131841531,-1587.9,8.493e-05,2]
[356243068,1742131841542,-2807.02,8.493e-05,2]
[356243069,1742131841554,-1104.34,8.493e-05,2]
[356243070,1742131841563,-514.75104493,8.493e-05,2]
[356243071,1742131841573,-500.0,8.493e-05,2]
[356243072,1742131841582,-500.0,8.493e-05,2]
[356243073,1742131841591,-500.0,8.493e-05,2]
[356243074,1742131841601,-500.0,8.493e-05,2]
[356243075,1742131841611,-500.0,8.493e-05,2]
[356243076,1742131841621,-3091.04,8.493e-05,2]
[356243077,1742131841630,-500.0,8.493e-05,2]
[356243078,1742131841639,-500.0,8.493e-05,2]
[356243079,1742131841648,-500.0,8.493e-05,2]
[356243080,1742131841658,-500.0,8.493e-05,2]
[356243081,1742131841668,-1872.03,8.493e-05,2]
[356243082,1742131841678,-500.0,8.493e-05,2]
[356243083,1742131841687,-500.0,8.493e-05,2]
[356243084,1742131841697,-1212.5,8.493e-05,2]
[356243085,1742131841706,-509.89048728,8.493e-05,2]
[356243086,1742131841716,-500.0,8.493e-05,2]
[356243087,1742131841725,-500.0,8.493e-05,2]
[356243088,1742131841735,-1129.38,8.493e-05,2]
[356243089,1742131841745,-500.0,8.493e-05,2]
[356243090,1742131841755,-500.0,8.493e-05,2]
[356243091,1742131841764,-503.26,8.493e-05,2]
[356243092,1742131841774,-500.0,8.493e-05,2]
[356243093,1742131841783,-2539.44,8.493e-05,2]
[356243094,1742131841793,-500.0,8.493e-05,2]
[356243095,1742131841802,-500.0,8.493e-05,2]
[356243096,1742131841812,-505.46877066,8.493e-05,2]
[356243097,1742131841822,-500.0,8.493e-05,2]
[356243098,1742131841832,-500.0,8.493e-05,2]
[356243099,1742131841841,-500.0,8.493e-05,2]
[356243100,1742131841851,-522.22,8.493e-05,2]
[356243101,1742131841861,-500.0,8.493e-05,2]
[356243102,1742131841870,-512.68963239,8.493e-05,2]
[356243103,1742131841880,-500.0,8.493e-05,2]
[356243104,1742131841889,-500.0,8.493e-05,2]
[356243105,1742131841899,-500.0,8.493e-05,2]
[356243106,1742131841909,-500.0,8.493e-05,2]
[356243107,1742131841918,-1147.86,8.493e-05,2]
[356243108,1742131841928,-3220.05,8.493e-05,2]
[356243109,1742131841937,-500.0,8.493e-05,2]
[356243110,1742131841947,-500.0,8.493e-05,2]
[356243111,1742131841957,-500.0,8.493e-05,2]
[356243112,1742131841967,-500.0,8.493e-05,2]
[356243113,1742131841976,-500.0,8.493e-05,2]
[356243114,1742131841986,-500.0,8.493e-05,2]
[356243115,1742131841995,-535.75,8.493e-05,2]
[356243116,1742131842005,-504.81338832,8.493e-05,2]
[356243117,1742131842015,-500.0,8.493e-05,2]
[356243118,1742131842025,-500.0,8.493e-05,2]
[356243119,1742131842035,-500.0,8.493e-05,2]
[356243120,1742131842044,-500.0,8.493e-05,2]
[356243121,1742131842054,-500.0,8.493e-05,2]
[356243122,1742131842068,-500.0,8.493e-05,2]
[356243123,1742131842077,-354.93,8.493e-05,2]
[356243124,1742131842087,-500.0,8.493e-05,2]
[356243125,1742131842096,-500.0,8.493e-05,2]
[356243126,1742131842107,-500.0,8.493e-05,2]
[356243127,1742131842116,-508.66475481,8.493e-05,2]
[356243128,1742131842126,-502.7408238,8.493e-05,2]
[356243129,1742131842136,-253.37,8.493e-05,2]
[356243130,1742131842146,-482.39084331,8.493e-05,2]
[356243131,1742131842157,-500.0,8.493e-05,2]
[356243132,1742131842167,-500.0,8.493e-05,2]
[356243133,1742131842176,-500.0,8.493e-05,2]
[356243134,1742131842186,-500.0,8.493e-05,2]
[356243135,1742131842198,-500.0,8.493e-05,2]
[356243136,1742131842208,-500.0,8.493e-05,2]
[356243137,1742131842218,-516.78803631,8.493e-05,2]
[356243138,1742131842228,-500.0,8.493e-05,2]
[356243139,1742131842238,-160.9819251,8.493e-05,2]
[356243140,1742131842248,-507.18702627,8.493e-05,2]
[356243141,1742131842257,-500.0,8.493e-05,2]
[356243142,1742131842267,-500.0,8.493e-05,2]
[356243143,1742131842277,-500.0,8.493e-05,2]
[356243144,1742131842286,-500.0,8.493e-05,2]
[356243145,1742131842296,-500.0,8.493e-05,2]
[356243146,1742131842306,-505.62948928,8.493e-05,2]
[356243147,1742131842316,-5870.08,8.493e-05,2]
[356243148,1742131842326,-500.0,8.493e-05,2]
[356243149,1742131842335,-508.83056698,8.493e-05,2]
[356243150,1742131842345,-2469.64,8.493e-05,2]
[356243151,1742131842357,-500.0,8.493e-05,2]
[356243152,1742131842367,-517.34298406,8.493e-05,2]
[356243153,1742131842376,-771.43,8.493e-05,2]
[356243154,1742131842386,-1002.62,8.493e-05,2]
[356243155,1742131842395,-500.0,8.493e-05,2]
[356243156,1742131842405,-513.35520079,8.493e-05,2]
[356243157,1742131842415,-607.17,8.493e-05,2]
[356243158,1742131842424,-500.0,8.493e-05,2]
[356243159,1742131842434,-500.0,8.493e-05,2]
[356243160,1742131842446,-500.0,8.493e-05,2]
[356243161,1742131842455,-500.0,8.493e-05,2]
[356243162,1742131842465,-500.0,8.493e-05,2]
[356243163,1742131842475,-637.82,8.493e-05,2]
[356243164,1742131842485,-500.0,8.493e-05,2]
[356243165,1742131842495,-500.0,8.493e-05,2]
[356243166,1742131842506,-500.0,8.493e-05,2]
[356243167,1742131842516,-500.0,8.493e-05,2]
[356243168,1742131842525,-500.0,8.493e-05,2]
[356243169,1742131842535,-500.0,8.493e-05,2]
[356243170,1742131842545,-5503.35,8.493e-05,2]
[356243171,1742131842554,-500.0,8.493e-05,2]
[356243172,1742131842564,-500.0,8.493e-05,2]
[356243173,1742131842574,-299.46198516,8.493e-05,2]
[356243174,1742131842583,-500.0,8.493e-05,2]
[356243175,1742131842593,-224.73,8.493e-05,2]
[356243176,1742131842602,-500.0,8.493e-05,2]
[356243177,1742131842612,-500.0,8.493e-05,2]
[356243178,1742131842622,-500.0,8.493e-05,2]
[356243179,1742131842631,-500.0,8.493e-05,2]
[356243180,1742131842641,-500.0,8.493e-05,2]
[356243181,1742131842651,-500.0,8.493e-05,2]
[356243182,1742131842661,-2192.07,8.493e-05,2]
[356243183,1742131842670,-1131.29,8.493e-05,2]
[356243184,1742131842680,-602.78,8.493e-05,2]
[356243185,1742131842690,-500.0,8.493e-05,2]
[356243186,1742131842700,-500.0,8.493e-05,2]
[356243188,1742131842711,-3188.1,8.493e-05,2]
[356243190,1742131842721,-500.0,8.493e-05,2]
[356243191,1742131842731,-500.0,8.493e-05,2]
[356243192,1742131842741,-500.0,8.493e-05,2]
[356243193,1742131842750,-30730.03988177,8.493e-05,2]
[356243195,1742131842906,-28103.09332133,8.493e-05,2]
[356243206,1742131843520,-500.0,8.219e-05,2]
[356243208,1742131843530,-2087.196,8.493e-05,2]
[356243211,1742131843546,-20971.46862905,8.493e-05,2]
[356243213,1742131843557,-3839.2,8.493e-05,2]
[356243214,1742131843568,-16725.8,8.493e-05,2]
[356243215,1742131843579,-3733.74999998,8.493e-05,2]
[356243216,1742131843900,-500.0,8.193e-05,2]
[356243217,1742131843909,-119.62637389,8.493e-05,2]
[356243224,1742131846484,-158.35575,8.111e-05,2]
[356243225,1742131846494,-500.0,8.219e-05,2]
[356243226,1742131846504,-9092.41833633,8.493e-05,2]
[356243227,1742131870021,514.64639819,0.00010959,30]
[356243228,1742131878702,-421.25622313,7.819e-05,2]
[356243229,1742131926201,-161.4557644,7.818e-05,2]
[356243231,1742132098278,10000.0,0.00014,30]
[356243232,1742132107003,10000.0,0.00014,30]
[356243233,1742132116011,10000.0,0.00014,30]
[356243234,1742132134801,10000.0,0.00014,30]
[356243438,1742133038346,-522.7187813,7.638e-05,2]
[356243439,1742133038356,-300.0,7.818e-05,2]
[356243440,1742133038366,-51967.41029638,7.819e-05,2]
[356243441,1742133038375,-161.455,8.185e-05,2]
[356243442,1742133038385,-500.0,8.193e-05,2]
[356243443,1742133038395,-500.0,8.193e-05,2]
[356243444,1742133038404,-500.0,8.193e-05,2]
[356243445,1742133038413,-151.0,8.214e-05,2]
[356243446,1742133038423,-600.0,8.214e-05,2]
[356243447,1742133038433,-264.42386796,8.219e-05,2]
[356243448,1742133038445,-400.64,8.219e-05,2]
[356243449,1742133038454,-157.522,8.219e-05,2]
[356243450,1742133038464,-518.42,8.219e-05,2]
[356243451,1742133038473,-500.0,8.219e-05,2]
[356243452,1742133038484,-365.06,8.219e-05,2]
[356243453,1742133038494,-645.76,8.219e-05,2]
[356243454,1742133038504,-1551.4,8.219e-05,2]
[356243455,1742133038514,-417.75,8.219e-05,2]
[356243456,1742133038524,-1000.0,8.219e-05,2]
[356243457,1742133038535,-500.0,8.219e-05,2]
[356243458,1742133038544,-500.0,8.219e-05,2]
[356243459,1742133038554,-212.09,8.219e-05,2]
[356243460,1742133038564,-500.0,8.219e-05,2]
[356243461,1742133038574,-522.29861357,8.219e-05,2]
[356243462,1742133038583,-500.0,8.219e-05,2]
[356243463,1742133038593,-500.0,8.219e-05,2]
[356243464,1742133038603,-500.0,8.219e-05,2]
[356243465,1742133038614,-246.88,8.219e-05,2]
[356243466,1742133038624,-500.0,8.219e-05,2]
[356243467,1742133038633,-448.64,8.219e-05,2]
[356243468,1742133038643,-500.0,8.219e-05,2]
[356243469,1742133038653,-500.0,8.219e-05,2]
[356243470,1742133038662,-242.55,8.219e-05,2]
[356243471,1742133038672,-500.0,8.219e-05,2]
[356243472,1742133038682,-316.06,8.219e-05,2]
[356243473,1742133038691,-500.0,8.219e-05,2]
[356243474,1742133038701,-500.0,8.219e-05,2]
[356243475,1742133038711,-500.0,8.219e-05,2]
[356243476,1742133038720,-335.62,8.219e-05,2]
[356243477,1742133038730,-500.0,8.219e-05,2]
[356243478,1742133038740,-295.03,8.219e-05,2]
[356243479,1742133038750,-512.40934047,8.219e-05,2]
[356243480,1742133038760,-347.86,8.219e-05,2]
[356243481,1742133038769,-11320.00210033,8.219e-05,2]
[356243506,1742133040780,-11420.0,8.219e-05,2]
[356243540,1742133046689,-1327.3024,8.219e-05,2]
[356243541,1742133046702,-128.2676,8.219e-05,2]
[356243542,1742133046713,-309.407724,8.219e-05,2]
[356243543,1742133046768,-280.59486852,8.219e-05,2]
[356243544,1742133046778,-2573.1,8.219e-05,2]
[356243545,1742133046788,-496.53,8.219e-05,2]
[356243546,1742133046799,-500.0,8.219e-05,2]
[356243547,1742133046809,-1012.31,8.219e-05,2]
[356243548,1742133046819,-2833.45,8.219e-05,2]
[356243549,1742133046830,-500.0,8.219e-05,2]
[356243550,1742133046839,-500.0,8.219e-05,2]
[356243551,1742133046849,-1716.03,8.219e-05,2]
[356243552,1742133046860,-1162.87,8.219e-05,2]
[356243553,1742133046870,-500.0,8.219e-05,2]
[356243554,1742133046880,-500.0,8.219e-05,2]
[356243555,1742133046889,-500.0,8.219e-05,2]
[356243556,1742133046899,-515.20153538,8.219e-05,2]
[356243557,1742133046909,-1111.46,8.219e-05,2]
[356243558,1742133046919,-500.0,8.219e-05,2]
[356243559,1742133046928,-500.0,8.219e-05,2]
[356243560,1742133046938,-1261.15,8.219e-05,2]
[356243561,1742133046948,-506.13419234,8.219e-05,2]
[356243562,1742133046958,-500.0,8.219e-05,2]
[356243563,1742133046968,-500.0,8.219e-05,2]
[356243564,1742133046978,-436.70146251,8.219e-05,2]
[356243592,1742134232817,-2132.09250294,8.119e-05,2]
[356243882,1742134240866,-364.80186734,8.119e-05,2]
[356243884,1742134240875,-640.59744769,8.2e-05,2]
[356243887,1742134240895,-497.99791072,8.2e-05,2]
[356244177,1742134243815,-361.40464159,8.2e-05,2]
[356244179,1742134243826,-272.52131296,8.214e-05,2]
[356244181,1742134243836,-600.0,8.214e-05,2]
[356244183,1742134243850,-27.56735302,8.218e-05,2]
[356244405,1742134246706,-272.43264698,8.218e-05,2]
[356244407,1742134246715,-220.94,8.219e-05,2]
[356244409,1742134246724,-157.522,8.219e-05,2]
[356244411,1742134246734,-500.0,8.219e-05,2]
[356244413,1742134246744,-500.0,8.219e-05,2]
[356244415,1742134246753,-507.78,8.219e-05,2]
[356244417,1742134246763,-287.65336077,8.219e-05,2]
[356244418,1742134246772,-500.0,8.219e-05,2]
[356244420,1742134246782,-500.0,8.219e-05,2]
[356244422,1742134246792,-512.42035038,8.219e-05,2]
[356244424,1742134246801,-506.48203844,8.219e-05,2]
[356244426,1742134246811,-500.0,8.219e-05,2]
[356244428,1742134246820,-556.06,8.219e-05,2]
[356244430,1742134246829,-504.03735224,8.219e-05,2]
[356244432,1742134246840,-523.33978139,8.219e-05,2]
[356244434,1742134246852,-522.44663426,8.219e-05,2]
[356244436,1742134246863,-500.0,8.219e-05,2]
[356244437,1742134246873,-500.0,8.219e-05,2]
[356244439,1742134246883,-506.00691187,8.219e-05,2]
[356244441,1742134246893,-425.45,8.219e-05,2]
[356244443,1742134246902,-532.72,8.219e-05,2]
[356244445,1742134246912,-500.0,8.219e-05,2]
[356244447,1742134246922,-347.79622313,8.219e-05,2]
[356244449,1742134246934,-2922.43,8.219e-05,2]
[356244451,1742134246944,-1394.92,8.219e-05,2]
[356244453,1742134246954,-1114.42,8.219e-05,2]
[356244455,1742134246963,-970.13,8.219e-05,2]
[356244457,1742134246972,-500.0,8.219e-05,2]
[356244459,1742134246982,-500.0,8.219e-05,2]
[356244461,1742134246991,-2715.39,8.219e-05,2]
[356244463,1742134247000,-500.0,8.219e-05,2]
[356244465,1742134247010,-520.27443323,8.219e-05,2]
[356244467,1742134247019,-1065.15,8.219e-05,2]
[356244469,1742134247028,-1644.53,8.219e-05,2]
[356244471,1742134247038,-1208.6,8.219e-05,2]
[356244473,1742134247048,-2465.89,8.219e-05,2]
[356244475,1742134247058,-2672.4,8.219e-05,2]
[356244477,1742134247067,-500.0,8.219e-05,2]
[356244479,1742134247076,-500.0,8.219e-05,2]
[356244481,1742134247086,-500.0,8.219e-05,2]
[356244483,1742134247095,-500.0,8.219e-05,2]
[356244485,1742134247105,-1052.2,8.219e-05,2]
[356244487,1742134247115,-632.26,8.219e-05,2]
[356244489,1742134247126,-500.0,8.219e-05,2]
[356244491,1742134247135,-500.0,8.219e-05,2]
[356244493,1742134247145,-500.0,8.219e-05,2]
[356244495,1742134247156,-2951.72,8.219e-05,2]
[356244497,1742134247166,-500.0,8.219e-05,2]
[356244499,1742134247175,-500.0,8.219e-05,2]
[356244501,1742134247185,-538.52,8.219e-05,2]
[356244503,1742134247195,-500.0,8.219e-05,2]
[356244505,1742134247204,-500.0,8.219e-05,2]
[356244507,1742134247213,-500.0,8.219e-05,2]
[356244509,1742134247223,-500.0,8.219e-05,2]
[356244511,1742134247232,-518.5219854,8.219e-05,2]
[356244513,1742134247241,-500.0,8.219e-05,2]
[356244515,1742134247250,-500.0,8.219e-05,2]
[356244517,1742134247260,-500.0,8.219e-05,2]
[356244519,1742134247269,-500.0,8.219e-05,2]
[356244521,1742134247278,-919.07,8.219e-05,2]
[356244523,1742134247287,-2263.83,8.219e-05,2]
[356244525,1742134247297,-1486.76,8.219e-05,2]
[356244527,1742134247306,-2392.74,8.219e-05,2]
[356244529,1742134247316,-500.0,8.219e-05,2]
[356244531,1742134247325,-5380.9,8.219e-05,2]
[356244533,1742134247335,-1000.0,8.219e-05,2]
[356244535,1742134247344,-707.15,8.219e-05,2]
[356244537,1742134247355,-556.58,8.219e-05,2]
[356244539,1742134247366,-441.62179699,8.219e-05,2]
[356244543,1742134247397,-58.37820301,8.219e-05,2]
[356244545,1742134247407,-500.0,8.219e-05,2]
[356244547,1742134247416,-281.30312211,8.219e-05,2]
[356245322,1742134503489,45510.0,0.00014,30]
[356245323,1742134731494,271.93,0.000139,31]
[356245324,1742134731595,271.93,0.000139,31]
[356245325,1742134731668,271.93,0.000139,31]
[356245326,1742134731721,271.93,0.000139,31]
[356245327,1742134731795,271.93,0.000139,31]
[356245328,1742134731854,271.93,0.000139,31]
[356245329,1742134731923,271.93,0.000139,31]
[356245330,1742134731980,271.93,0.000139,31]
[356245331,1742134732047,271.93,0.000139,31]
[356245332,1742134732109,271.93,0.000139,31]
[356245333,1742134732164,271.93,0.000139,31]
[356245334,1742134732252,271.93,0.000139,31]
[356245335,1742134732290,271.93,0.000139,31]
[356245336,1742134732342,271.93,0.000139,31]
[356245337,1742134732414,271.93,0.000139,31]
[356245338,1742134732807,271.93,0.000139,31]
[356245339,1742134768623,-150.0,7.213e-05,2]
[356245357,1742135322429,479.9832186,0.00013,120]
[356245358,1742135326953,479.9832186,0.00014,120]
[356245359,1742135331397,479.9832186,0.00015,120]
[356245360,1742135343753,228.45,0.000139,31]
[356245361,1742135343809,228.45,0.000139,31]
[356245362,1742135343868,228.45,0.000139,31]
[356245363,1742135343940,228.45,0.000139,31]
[356245364,1742135343977,228.45,0.000139,31]
[356245365,1742135344049,228.45,0.000139,31]
[356245366,1742135344111,228.45,0.000139,31]
[356245367,1742135344176,228.45,0.000139,31]
[356245368,1742135344230,228.45,0.000139,31]
[356245369,1742135344267,228.45,0.000139,31]
[356245370,1742135344314,228.45,0.000139,31]
[356245371,1742135344369,228.45,0.000139,31]
[356245372,1742135344427,228.45,0.000139,31]
[356245373,1742135344478,228.45,0.000139,31]
[356245374,1742135344544,228.45,0.000139,31]
[356245375,1742135344601,228.45,0.000139,31]
[356245412,1742135432299,-839.68132512,8.038e-05,2]
[356245413,1742135432310,-839.68132512,8.119e-05,2]
[356245414,1742135432319,-300.0,8.192e-05,2]
[356245415,1742135432329,-500.0,8.193e-05,2]
[356245416,1742135432338,-507.84267699,8.193e-05,2]
[356245417,1742135432348,-500.0,8.193e-05,2]
[356245418,1742135432358,-500.0,8.193e-05,2]
[356245419,1742135432367,-500.0,8.193e-05,2]
[356245420,1742135432377,-500.0,8.193e-05,2]
[356245421,1742135432386,-500.0,8.193e-05,2]
[356245422,1742135432395,-500.0,8.193e-05,2]
[356245423,1742135432405,-500.0,8.193e-05,2]
[356245424,1742135432414,-500.0,8.193e-05,2]
[356245425,1742135432424,-500.0,8.193e-05,2]
[356245426,1742135432433,-500.0,8.193e-05,2]
[356245427,1742135432443,-500.0,8.193e-05,2]
[356245428,1742135432456,-500.0,8.193e-05,2]
[356245429,1742135432466,-500.0,8.193e-05,2]